Workbook

Sheet Swindle - Summer 2025
B3: SATURDAY SWINDLE - SUMMER 2025
D5: Total | E5: Ave | G5: Swindle | K5: Latest Result - 17 May 2025
C6: Rounds | D6: S'ford | E6: S'ford | F6: Wins | G6: Pts | L6: Stableford | M6: Swindle
A7: =A6+1 -> 1 | B7: Terry Poingdestre | C7: 7 | D7: =41+41+27+36+30+36+25 -> 236 | E7: =D7/C7 -> 33.71428571 | F7: 2 | G7: =21+18+4+14+8+23+5 -> 93 | L7: Points | M7: Points
A8: 2 | B8: John FitzGerald | C8: 7 | D8: =37+23+35+36+33+35+24 -> 223 | E8: =D8/C8 -> 31.85714286 | G8: =18+2+15+15+14+17+4 -> 85 | J8: 1 | K8: Colin Reardon | L8: 36 | M8: 23
A9: 3 | B9: Tim Lloyd | C9: 7 | D9: =32+42+30+29+30+35+31 -> 229 | E9: =D9/C9 -> 32.71428571 | F9: 1 | G9: =13+21+7+6+7+18+11 -> 83 | J9: =J8+1 -> 2 | K9: Paul Barnett | L9: 36 | M9: 20
A10: 4 | B10: Dennis Cantwell | C10: 6 | D10: =28+36+33+31+34+35 -> 197 | E10: =D10/C10 -> 32.83333333 | G10: =7+18+11+11+14+18 -> 79 | J10: =J9+1 -> 3 | K10: Dennis Cantwell | L10: 35 | M10: 18
A11: 5 | B11: Adam Witherington | C11: 6 | D11: =35+30+35+32+34+33 -> 199 | E11: =D11/C11 -> 33.16666667 | G11: =15+7+17+8+13+15 -> 75 | J11: 4 | K11: Simon Cook | L11: 34 | M11: 17
A12: 6 | B12: Scott Browning | C12: 5 | D12: =34+37+35+31+30 -> 167 | E12: =D12/C12 -> 33.4 | G12: =14+17+17+10+9 -> 67 | J12: 5 | K12: Paul Sims | L12: 33 | M12: 16
A13: 7 | B13: Bryn Owen | C13: 5 | D13: =36+34+29+38+30 -> 167 | E13: =D13/C13 -> 33.4 | G13: =16+12+6+21+10 -> 65 | J13: 6 | K13: Adam Witherington | L13: 33 | M13: 15
A14: 8 | B14: Tim Horan | C14: 5 | D14: =29+35+30+35+35 -> 164 | E14: =D14/C14 -> 32.8 | G14: =10+16+7+15+16 -> 64 | J14: 7 | K14: Paul Reardon | L14: 32 | M14: 14
A15: 9 | B15: Phil Hames | C15: 5 | D15: =32+38+37+35+24 -> 166 | E15: =D15/C15 -> 33.2 | F15: 1 | G15: =6+20+19+15+3 -> 63 | J15: 8 | K15: Andy Vittery | L15: 32 | M15: 13
A16: 10 | B16: Paul Barnett | C16: 6 | D16: =32+37+22+25+31+36 -> 183 | E16: =D16/C16 -> 30.5 | G16: =11+16+1+3+9+20 -> 60 | J16: 9 | K16: Martin Thomas | L16: 31 | M16: 12
A17: 11 | B17: Simon Hill | C17: 5 | D17: =28+36+27+37+32 -> 160 | E17: =D17/C17 -> 32 | G17: =8+15+4+18+12 -> 57 | J17: 10 | K17: Tim Lloyd | L17: 31 | M17: 11
A18: 12 | B18: Colin Reardon | C18: 3 | D18: =42+31+36 -> 109 | E18: =D18/C18 -> 36.33333333 | F18: 2 | G18: =24+9+23 -> 56 | J18: 11 | K18: Bryn Owen | L18: 30 | M18: 10
A19: 13 | B19: John Copas | C19: 5 | D19: =33+38+25+32+29 -> 157 | E19: =D19/C19 -> 31.4 | F19: 1 | G19: =11+24+2+12+7 -> 56 | J19: 12 | K19: Scott Browning | L19: 30 | M19: 9
A20: 14 | B20: Paul Sims | C20: 4 | D20: =28+37+31+33 -> 129 | E20: =D20/C20 -> 32.25 | G20: =9+21+10+16 -> 56 | J20: 13 | K20: Martyn Crichton | L20: 30 | M20: 8
A21: 15 | B21: Simon Cook | C21: 4 | D21: =34+33+36+34 -> 137 | E21: =D21/C21 -> 34.25 | G21: =13+13+12+17 -> 55 | J21: 14 | K21: John Copas | L21: 29 | M21: 7
A22: 16 | B22: Nick Hayward | C22: 5 | D22: =35+30+32+33+32 -> 162 | E22: =D22/C22 -> 32.4 | G22: =14+8+9+13+11 -> 55 | J22: 15 | K22: Brad Carpenter | L22: 29 | M22: 6
A23: 17 | B23: Brad Bygrave | C23: 6 | D23: =25+32+32+28+26+26 -> 169 | E23: =D23/C23 -> 28.16666667 | G23: =3+9+11+5+4+4 -> 36 | J23: 16 | K23: Terry Poingdestre | L23: 25 | M23: 5
A24: 18 | B24: Iain Maxwell | C24: 3 | D24: =32+35+29 -> 96 | E24: =D24/C24 -> 32 | G24: =12+14+6 -> 32 | J24: 17 | K24: John FitzGerald | L24: 24 | M24: 4
A25: 19 | B25: Phil Nathan | C25: 2 | D25: =33+36 -> 69 | E25: =D25/C25 -> 34.5 | G25: =10+19 -> 29 | J25: 18 | K25: Phil Hames | L25: 24 | M25: 3
A26: 20 | B26: Andy Vittery | C26: 3 | D26: =25+36+32 -> 93 | E26: =D26/C26 -> 31 | G26: =2+13+13 -> 28 | J26: 19 | K26: Colin Price | L26: 23 | M26: 2
A27: 21 | B27: Brad Carpenter | C27: 6 | D27: =18+29+31+24+26+29 -> 157 | E27: =D27/C27 -> 26.16666667 | G27: =1+5+10+1+5+6 -> 28 | J27: 20 | K27: John Machin | L27: 20 | M27: 1
A28: 22 | B28: Colin Price | C28: 4 | D28: =32+27+31+23 -> 113 | E28: =D28/C28 -> 28.25 | G28: =12+3+9+2 -> 26
A29: 23 | B29: John Machin | C29: 6 | D29: =26+20+30+32+23+20 -> 151 | E29: =D29/C29 -> 25.16666667 | G29: =4+1+9+10+1+1 -> 26
A30: 24 | B30: Kevin Poore | C30: 3 | D30: =28+23+35 -> 86 | E30: =D30/C30 -> 28.66666667 | G30: =3+2+20 -> 25
A31: 25 | B31: Simon Lloyd | C31: 2 | D31: =32+35 -> 67 | E31: =D31/C31 -> 33.5 | G31: =8+16 -> 24
A32: 26 | B32: Les Bygrave | C32: 5 | D32: =27+29+28+27+25 -> 136 | E32: =D32/C32 -> 27.2 | G32: =6+4+5+6+3 -> 24
A33: 27 | B33: Paul Reardon | C33: 2 | D33: =27+32 -> 59 | E33: =D33/C33 -> 29.5 | G33: =5+14 -> 19
A34: 28 | B34: Martyn Crichton | C34: 3 | D34: =27+26+30 -> 83 | E34: =D34/C34 -> 27.66666667 | G34: =5+3+8 -> 16
A35: 29 | B35: Martin Thomas | C35: 3 | D35: =24+21+31 -> 76 | E35: =D35/C35 -> 25.33333333 | G35: =2+1+12 -> 15
A36: 30 | B36: Trevor Vincent | C36: 1 | D36: =30 -> 30 | E36: =D36/C36 -> 30 | G36: =7 -> 7
A37: 31 | B37: Roger Keen | C37: 1 | D37: =21 -> 21 | E37: =D37/C37 -> 21 | G37: =2 -> 2
E39: =CONCATENATE("Scores after round on ",MID(K5,17,17)) -> Scores after round on 17 May 2025
E40: Rounds: | F40: =SUM(F6:F37) -> 7
